[Event "Late-Titled-Tuesday-Blitz-February-20-2024"]
[Site "Chess.com"]
[Date "2024.02.20"]
[Round "3"]
[White "JackRodgers"]
[Black "OverallStranger"]
[Result "1-0"]
[WhiteElo "2555"]
[BlackElo "2347"]
[TimeControl "180+1"]
[EndTime "14:26:56 PST"]
[Termination "JackRodgers won by checkmate"]

1. d4 {[%clk 0:03:00.9]} 1... e6 {[%clk 0:02:57]} 2. c4 {[%clk 0:03:00]} 2... f5
{[%clk 0:02:57.1]} 3. g3 {[%clk 0:02:59.6]} 3... Nf6 {[%clk 0:02:57.6]} 4. Bg2
{[%clk 0:02:59.9]} 4... c6 {[%clk 0:02:58.2]} 5. Nf3 {[%clk 0:02:59.1]} 5... d5
{[%clk 0:02:58.5]} 6. Ne5 {[%clk 0:02:59.5]} 6... Bd6 {[%clk 0:02:55.8]} 7. O-O
{[%clk 0:02:55.5]} 7... O-O {[%clk 0:02:54.7]} 8. Bg5 {[%clk 0:02:49]} 8... Qe8
{[%clk 0:02:52.3]} 9. Bxf6 {[%clk 0:02:48]} 9... Rxf6 {[%clk 0:02:52.2]} 10. f4
{[%clk 0:02:42]} 10... Rh6 {[%clk 0:02:49]} 11. e3 {[%clk 0:02:39.8]} 11... Nd7
{[%clk 0:02:47.1]} 12. Nc3 {[%clk 0:02:33.6]} 12... Nf6 {[%clk 0:02:47]} 13. Bf3
{[%clk 0:02:24.1]} 13... Ne4 {[%clk 0:02:43.5]} 14. Bxe4 {[%clk 0:02:19.3]}
14... fxe4 {[%clk 0:02:39.3]} 15. c5 {[%clk 0:02:14.9]} 15... Be7 {[%clk
0:02:35.7]} 16. b4 {[%clk 0:02:13.5]} 16... Qf8 {[%clk 0:02:21.9]} 17. a4 {[%clk
0:02:08.9]} 17... Qf5 {[%clk 0:02:17.4]} 18. Qe2 {[%clk 0:02:05.2]} 18... Qh3
{[%clk 0:02:08.1]} 19. Qg2 {[%clk 0:02:04.9]} 19... Bf6 {[%clk 0:01:59.1]} 20.
Qxh3 {[%clk 0:02:00.1]} 20... Rxh3 {[%clk 0:01:59.1]} 21. Kg2 {[%clk 0:02:00.7]}
21... Rh6 {[%clk 0:01:59.4]} 22. b5 {[%clk 0:01:55.3]} 22... Bxe5 {[%clk
0:01:57.9]} 23. fxe5 {[%clk 0:01:55.3]} 23... Bd7 {[%clk 0:01:58.3]} 24. Rf2
{[%clk 0:01:48.1]} 24... Rf8 {[%clk 0:01:57.4]} 25. Rxf8+ {[%clk 0:01:41.7]}
25... Kxf8 {[%clk 0:01:57.5]} 26. Rb1 {[%clk 0:01:42.4]} 26... Rh5 {[%clk
0:01:51.2]} 27. g4 {[%clk 0:01:36.1]} 27... Rg5 {[%clk 0:01:47.7]} 28. Kg3
{[%clk 0:01:34.3]} 28... h5 {[%clk 0:01:46.8]} 29. h3 {[%clk 0:01:34.9]} 29...
Rg6 {[%clk 0:01:42.1]} 30. a5 {[%clk 0:01:28.6]} 30... hxg4 {[%clk 0:01:19]} 31.
hxg4 {[%clk 0:01:26.9]} 31... Ke7 {[%clk 0:00:42.3]} 32. a6 {[%clk 0:01:21.7]}
32... bxa6 {[%clk 0:00:41.8]} 33. b6 {[%clk 0:01:19.2]} 33... axb6 {[%clk
0:00:40.7]} 34. cxb6 {[%clk 0:01:19.1]} 34... Bc8 {[%clk 0:00:41.2]} 35. b7
{[%clk 0:01:19.4]} 35... Bxb7 {[%clk 0:00:41.9]} 36. Rxb7+ {[%clk 0:01:19.6]}
36... Kf8 {[%clk 0:00:42.4]} 37. Na4 {[%clk 0:01:14.5]} 37... Rh6 {[%clk
0:00:42.4]} 38. Nc5 {[%clk 0:01:14.2]} 38... a5 {[%clk 0:00:38.3]} 39. Ra7
{[%clk 0:01:11.1]} 39... Rh1 {[%clk 0:00:37.3]} 40. Nxe6+ {[%clk 0:01:10.7]}
40... Ke8 {[%clk 0:00:37.5]} 41. Nxg7+ {[%clk 0:01:10.2]} 41... Kf8 {[%clk
0:00:37.8]} 42. Ne6+ {[%clk 0:01:10.6]} 42... Ke8 {[%clk 0:00:38.4]} 43. Rxa5
{[%clk 0:01:06.7]} 43... Re1 {[%clk 0:00:35.8]} 44. Kf2 {[%clk 0:01:04.6]} 44...
Rb1 {[%clk 0:00:32.9]} 45. Nf4 {[%clk 0:00:58]} 45... Rb2+ {[%clk 0:00:30.9]}
46. Ne2 {[%clk 0:00:58.4]} 46... Rc2 {[%clk 0:00:30]} 47. g5 {[%clk 0:00:57.7]}
47... Kf7 {[%clk 0:00:30.1]} 48. Ra7+ {[%clk 0:00:56.4]} 48... Kg6 {[%clk
0:00:30.3]} 49. e6 {[%clk 0:00:56.9]} 49... Rb2 {[%clk 0:00:18.6]} 50. e7 {[%clk
0:00:55.8]} 50... Kf7 {[%clk 0:00:18.9]} 51. g6+ {[%clk 0:00:54.3]} 51... Kg7
{[%clk 0:00:17.9]} 52. e8=Q+ {[%clk 0:00:52.4]} 52... Kh6 {[%clk 0:00:18.5]} 53.
Rh7+ {[%clk 0:00:51.6]} 53... Kg5 {[%clk 0:00:18.8]} 54. Qe7+ {[%clk 0:00:51.4]}
54... Kxg6 {[%clk 0:00:19]} 55. Qf7+ {[%clk 0:00:51.2]} 55... Kg5 {[%clk
0:00:18.9]} 56. Rh5+ {[%clk 0:00:52.1]} 56... Kg4 {[%clk 0:00:19.5]} 57. Qf5#
{[%clk 0:00:53]} 1-0

[Event "Late-Titled-Tuesday-Blitz-February-20-2024"]
[Site "Chess.com"]
[Date "2024.02.20"]
[Round "3"]
[White "pavet"]
[Black "jefferyx"]
[Result "1/2-1/2"]
[WhiteElo "2747"]
[BlackElo "3017"]
[TimeControl "180+1"]
[EndTime "14:26:57 PST"]
[Termination "Game drawn by agreement"]

1. e4 {[%clk 0:03:00.9]} 1... c6 {[%clk 0:03:00.3]} 2. d4 {[%clk 0:02:59.9]}
2... d5 {[%clk 0:03:01]} 3. e5 {[%clk 0:03:00.3]} 3... Bf5 {[%clk 0:03:01.1]} 4.
h4 {[%clk 0:02:58.7]} 4... h5 {[%clk 0:03:01.1]} 5. Bd3 {[%clk 0:02:58.8]} 5...
Bxd3 {[%clk 0:03:01.4]} 6. Qxd3 {[%clk 0:02:59.7]} 6... Qa5+ {[%clk 0:03:00.3]}
7. Nd2 {[%clk 0:02:59.1]} 7... e6 {[%clk 0:02:59.1]} 8. Nf3 {[%clk 0:02:58.7]}
8... Nh6 {[%clk 0:02:58.5]} 9. O-O {[%clk 0:02:56.5]} 9... Nf5 {[%clk
0:02:58.1]} 10. a4 {[%clk 0:02:56.6]} 10... Be7 {[%clk 0:02:56.5]} 11. b3 {[%clk
0:02:52.9]} 11... Nxh4 {[%clk 0:02:50.3]} 12. Nxh4 {[%clk 0:02:52.5]} 12... Bxh4
{[%clk 0:02:51.2]} 13. Ba3 {[%clk 0:02:52]} 13... Nd7 {[%clk 0:02:46.5]} 14. c4
{[%clk 0:02:50.7]} 14... Be7 {[%clk 0:02:27.9]} 15. Bxe7 {[%clk 0:02:48.4]}
15... Kxe7 {[%clk 0:02:28.8]} 16. b4 {[%clk 0:02:44]} 16... Qd8 {[%clk
0:02:16.1]} 17. b5 {[%clk 0:02:37.3]} 17... Kf8 {[%clk 0:02:15.5]} 18. cxd5
{[%clk 0:02:36.1]} 18... cxd5 {[%clk 0:02:15.5]} 19. Rac1 {[%clk 0:02:34.2]}
19... h4 {[%clk 0:02:15.1]} 20. f4 {[%clk 0:02:24.7]} 20... Kg8 {[%clk
0:02:14.9]} 21. f5 {[%clk 0:02:20.4]} 21... Qg5 {[%clk 0:02:07.8]} 22. fxe6
{[%clk 0:02:13.9]} 22... fxe6 {[%clk 0:02:08.7]} 23. Rc7 {[%clk 0:02:02.3]}
23... h3 {[%clk 0:02:08.5]} 24. g3 {[%clk 0:01:27]} 24... Nb6 {[%clk 0:01:51.8]}
25. Kh2 {[%clk 0:01:21.2]} 25... Rh6 {[%clk 0:01:43.3]} 26. Rf4 {[%clk
0:01:07.4]} 26... Rg6 {[%clk 0:01:29.9]} 27. a5 {[%clk 0:01:00.5]} 27... Nc4
{[%clk 0:01:30]} 28. Nxc4 {[%clk 0:00:54.7]} 28... dxc4 {[%clk 0:01:30.9]} 29.
Rxc4 {[%clk 0:00:53.4]} 29... Rd8 {[%clk 0:00:51.4]} 30. Rc7 {[%clk 0:00:39.8]}
30... Rh6 {[%clk 0:00:48.8]} 31. Rxb7 {[%clk 0:00:22.3]} 31... Qxe5 {[%clk
0:00:48.1]} 32. dxe5 {[%clk 0:00:18.6]} 32... Rxd3 {[%clk 0:00:47.8]} 33. Rb8+
{[%clk 0:00:19.2]} 33... Kh7 {[%clk 0:00:47.8]} 34. Rh4 {[%clk 0:00:20.1]} 34...
Rxh4 {[%clk 0:00:46.2]} 35. gxh4 {[%clk 0:00:21]} 35... Kg6 {[%clk 0:00:25.1]}
36. a6 {[%clk 0:00:21.3]} 36... Ra3 {[%clk 0:00:25.3]} 37. Rb7 {[%clk
0:00:20.4]} 37... Ra5 {[%clk 0:00:25.6]} 38. Rxa7 {[%clk 0:00:19.3]} 38... Rxb5
{[%clk 0:00:25.6]} 39. Re7 {[%clk 0:00:18.2]} 39... Rxe5 {[%clk 0:00:25.4]} 40.
a7 {[%clk 0:00:17.8]} 40... Ra5 {[%clk 0:00:25.7]} 41. Rxe6+ {[%clk 0:00:14.1]}
41... Kf7 {[%clk 0:00:23.8]} 42. Re4 {[%clk 0:00:12.7]} 42... Rxa7 {[%clk
0:00:24.2]} 43. Kxh3 {[%clk 0:00:13.1]} 1/2-1/2

[Event "Late-Titled-Tuesday-Blitz-February-20-2024"]
[Site "Chess.com"]
[Date "2024.02.20"]
[Round "3"]
[White "GothamChess"]
[Black "Hrant_ChessMood"]
[Result "0-1"]
[WhiteElo "2704"]
[BlackElo "3007"]
[TimeControl "180+1"]
[EndTime "14:26:57 PST"]
[Termination "Hrant_ChessMood won by resignation"]

1. e4 {[%clk 0:03:00.9]} 1... c6 {[%clk 0:02:52.5]} 2. d4 {[%clk 0:02:59.7]}
2... d5 {[%clk 0:02:53.4]} 3. Nc3 {[%clk 0:03:00]} 3... dxe4 {[%clk 0:02:53.4]}
4. Nxe4 {[%clk 0:03:00.9]} 4... Nf6 {[%clk 0:02:53.4]} 5. Ng5 {[%clk 0:03:01.2]}
5... Bg4 {[%clk 0:02:46.6]} 6. N1f3 {[%clk 0:02:54.5]} 6... Nbd7 {[%clk
0:02:38.7]} 7. h3 {[%clk 0:02:52.4]} 7... Bxf3 {[%clk 0:02:37.7]} 8. Nxf3 {[%clk
0:02:51.4]} 8... e6 {[%clk 0:02:38]} 9. Be2 {[%clk 0:02:47.4]} 9... Bd6 {[%clk
0:02:37.8]} 10. O-O {[%clk 0:02:48]} 10... O-O {[%clk 0:02:37.8]} 11. b3 {[%clk
0:02:40.1]} 11... a5 {[%clk 0:02:35.8]} 12. a4 {[%clk 0:02:39]} 12... Qc7 {[%clk
0:02:31.4]} 13. Bb2 {[%clk 0:02:36.7]} 13... Rad8 {[%clk 0:02:25.6]} 14. Re1
{[%clk 0:02:35.8]} 14... e5 {[%clk 0:02:14.1]} 15. Bd3 {[%clk 0:02:31.3]} 15...
exd4 {[%clk 0:02:07.8]} 16. Bxd4 {[%clk 0:02:19.3]} 16... Bc5 {[%clk 0:01:58.1]}
17. Qc1 {[%clk 0:01:33.4]} 17... Bxd4 {[%clk 0:01:57.4]} 18. Nxd4 {[%clk
0:01:34.3]} 18... Nc5 {[%clk 0:01:43.4]} 19. Nf5 {[%clk 0:01:32.6]} 19... g6
{[%clk 0:01:28.4]} 20. Nh6+ {[%clk 0:01:16.8]} 20... Kh8 {[%clk 0:01:11.5]} 21.
Qg5 {[%clk 0:01:03.6]} 21... Nd5 {[%clk 0:01:00.2]} 22. Bc4 {[%clk 0:00:49]}
22... Ne6 {[%clk 0:00:54.9]} 23. Qc1 {[%clk 0:00:40.7]} 23... Qf4 {[%clk
0:00:47.8]} 24. Bxd5 {[%clk 0:00:33.6]} 24... Rxd5 {[%clk 0:00:48]} 25. Qb2+
{[%clk 0:00:25.2]} 25... Qd4 {[%clk 0:00:47.7]} 26. Qxd4+ {[%clk 0:00:22]} 26...
Nxd4 {[%clk 0:00:45.5]} 27. Re7 {[%clk 0:00:22.5]} 27... Kg7 {[%clk 0:00:45]}
28. Ng4 {[%clk 0:00:22.8]} 28... Nxc2 {[%clk 0:00:41.1]} 29. Rc1 {[%clk
0:00:19.2]} 29... Nd4 {[%clk 0:00:41.4]} 30. Kh2 {[%clk 0:00:19.2]} 30... Nxb3
{[%clk 0:00:39.9]} 31. Rce1 {[%clk 0:00:17.7]} 31... Nc5 {[%clk 0:00:40]} 32.
Rc7 {[%clk 0:00:14.2]} 32... Rf5 {[%clk 0:00:33.5]} 33. Kg3 {[%clk 0:00:11.7]}
33... h5 {[%clk 0:00:32.7]} 34. Ne3 {[%clk 0:00:11.1]} 34... Rf6 {[%clk
0:00:22.7]} 35. Nc4 {[%clk 0:00:10.5]} 35... h4+ {[%clk 0:00:18.9]} 36. Kxh4
{[%clk 0:00:09.8]} 36... Rf4+ {[%clk 0:00:19.2]} 0-1

[Event "Late-Titled-Tuesday-Blitz-February-20-2024"]
[Site "Chess.com"]
[Date "2024.02.20"]
[Round "3"]
[White "icaughtacrab"]
[Black "Walter_White_Poland"]
[Result "0-1"]
[WhiteElo "2049"]
[BlackElo "2363"]
[TimeControl "180+1"]
[EndTime "14:26:59 PST"]
[Termination "Walter_White_Poland won on time"]

1. d4 {[%clk 0:03:00.9]} 1... d5 {[%clk 0:02:57.1]} 2. Bf4 {[%clk 0:03:01.4]}
2... c5 {[%clk 0:02:55.4]} 3. e3 {[%clk 0:03:01.9]} 3... Nc6 {[%clk 0:02:54.2]}
4. c3 {[%clk 0:03:01.9]} 4... Nf6 {[%clk 0:02:53]} 5. Nf3 {[%clk 0:03:01.9]}
5... Qb6 {[%clk 0:02:52.3]} 6. Qb3 {[%clk 0:03:01.6]} 6... c4 {[%clk 0:02:51.9]}
7. Qc2 {[%clk 0:03:02.2]} 7... Bf5 {[%clk 0:02:51.5]} 8. Qc1 {[%clk 0:03:03]}
8... e6 {[%clk 0:02:49.4]} 9. Nbd2 {[%clk 0:03:03.6]} 9... h6 {[%clk 0:02:47.8]}
10. h3 {[%clk 0:03:02.3]} 10... Rc8 {[%clk 0:02:46.1]} 11. Be2 {[%clk
0:03:00.6]} 11... Qa5 {[%clk 0:02:31.5]} 12. b4 {[%clk 0:02:50.7]} 12... Nxb4
{[%clk 0:02:08.8]} 13. cxb4 {[%clk 0:02:47.7]} 13... Bxb4 {[%clk 0:02:09.7]} 14.
O-O {[%clk 0:02:44.6]} 14... Ba3 {[%clk 0:02:08.8]} 15. Nb3 {[%clk 0:02:21.6]}
15... Qb4 {[%clk 0:01:45.6]} 16. Qe1 {[%clk 0:01:47.1]} 16... cxb3 {[%clk
0:01:30.1]} 17. Qxb4 {[%clk 0:01:41.9]} 17... Bxb4 {[%clk 0:01:30.4]} 18. axb3
{[%clk 0:01:42.8]} 18... a6 {[%clk 0:01:23.4]} 19. Ra4 {[%clk 0:01:31]} 19...
Be7 {[%clk 0:01:16.9]} 20. Ne5 {[%clk 0:01:25.4]} 20... Nd7 {[%clk 0:01:04.4]}
21. g4 {[%clk 0:01:08]} 21... Bh7 {[%clk 0:00:58]} 22. Nd3 {[%clk 0:01:03.5]}
22... Rc2 {[%clk 0:00:41.5]} 23. Nc1 {[%clk 0:00:50]} 23... O-O {[%clk
0:00:34.4]} 24. Re1 {[%clk 0:00:40.6]} 24... Rfc8 {[%clk 0:00:31.9]} 25. Na2
{[%clk 0:00:30.7]} 25... Nb6 {[%clk 0:00:25.5]} 26. Ra5 {[%clk 0:00:28.4]} 26...
Rb2 {[%clk 0:00:20.6]} 27. Bd1 {[%clk 0:00:21.7]} 27... g5 {[%clk 0:00:15.8]}
28. Bg3 {[%clk 0:00:21.4]} 28... f6 {[%clk 0:00:14.8]} 29. Kg2 {[%clk 0:00:21]}
29... Kf7 {[%clk 0:00:12.9]} 30. Kg1 {[%clk 0:00:13.6]} 30... Be4 {[%clk
0:00:12.8]} 31. f3 {[%clk 0:00:13.4]} 31... Bd3 {[%clk 0:00:12.7]} 32. Bf2
{[%clk 0:00:08.2]} 32... Bb1 {[%clk 0:00:12.2]} 33. Nc1 {[%clk 0:00:01.8]} 33...
Rxc1 {[%clk 0:00:11]} 0-1

[Event "Late-Titled-Tuesday-Blitz-February-20-2024"]
[Site "Chess.com"]
[Date "2024.02.20"]
[Round "3"]
[White "andy_rekt"]
[Black "manitodeplomo"]
[Result "1/2-1/2"]
[WhiteElo "2473"]
[BlackElo "2651"]
[TimeControl "180+1"]
[EndTime "14:27:00 PST"]
[Termination "Game drawn by repetition"]

1. e4 {[%clk 0:02:59.1]} 1... c5 {[%clk 0:02:59.9]} 2. Nf3 {[%clk 0:02:58.5]}
2... e6 {[%clk 0:03:00.2]} 3. c3 {[%clk 0:02:56.5]} 3... d5 {[%clk 0:02:59.5]}
4. exd5 {[%clk 0:02:52.5]} 4... Qxd5 {[%clk 0:03:00.4]} 5. d4 {[%clk 0:02:52.1]}
5... Nf6 {[%clk 0:03:00.9]} 6. Na3 {[%clk 0:02:49.4]} 6... Bd7 {[%clk
0:02:59.7]} 7. Bc4 {[%clk 0:02:22.7]} 7... Qd6 {[%clk 0:02:55.9]} 8. Nb5 {[%clk
0:02:15.3]} 8... Bxb5 {[%clk 0:02:55.2]} 9. Bxb5+ {[%clk 0:02:16.2]} 9... Nbd7
{[%clk 0:02:54.7]} 10. O-O {[%clk 0:02:06.3]} 10... a6 {[%clk 0:02:54.2]} 11.
Ba4 {[%clk 0:02:02.3]} 11... b5 {[%clk 0:02:52.3]} 12. Bc2 {[%clk 0:02:02]}
12... Be7 {[%clk 0:02:51.9]} 13. a4 {[%clk 0:02:00.6]} 13... O-O {[%clk
0:02:49.3]} 14. axb5 {[%clk 0:01:59.9]} 14... axb5 {[%clk 0:02:50.2]} 15. Bg5
{[%clk 0:01:54.4]} 15... c4 {[%clk 0:02:44.4]} 16. Qe2 {[%clk 0:01:49.2]} 16...
Ra6 {[%clk 0:02:29.5]} 17. Rxa6 {[%clk 0:01:46]} 17... Qxa6 {[%clk 0:02:29]} 18.
Ne5 {[%clk 0:01:46]} 18... Nxe5 {[%clk 0:02:16.8]} 19. Qxe5 {[%clk 0:01:35.1]}
19... Rd8 {[%clk 0:02:07.7]} 20. Qc7 {[%clk 0:01:27.4]} 20... Nd5 {[%clk
0:01:48.4]} 21. Qg3 {[%clk 0:01:14]} 21... Bxg5 {[%clk 0:01:22]} 22. Qxg5 {[%clk
0:01:14.9]} 22... Qd6 {[%clk 0:01:13.6]} 23. h4 {[%clk 0:01:08.2]} 23... h6
{[%clk 0:01:12.3]} 24. Qg4 {[%clk 0:01:06.3]} 24... Qf4 {[%clk 0:01:07.2]} 25.
Qxf4 {[%clk 0:01:03.2]} 25... Nxf4 {[%clk 0:01:08.1]} 26. Ra1 {[%clk 0:01:02.2]}
26... b4 {[%clk 0:01:07]} 27. Ra4 {[%clk 0:00:56.4]} 27... bxc3 {[%clk
0:01:06.3]} 28. bxc3 {[%clk 0:00:56.1]} 28... Rc8 {[%clk 0:01:05.4]} 29. Kf1
{[%clk 0:00:51.6]} 29... Nd5 {[%clk 0:01:05.2]} 30. Ra3 {[%clk 0:00:48.5]} 30...
Rb8 {[%clk 0:01:04.6]} 31. Ke1 {[%clk 0:00:46.4]} 31... g5 {[%clk 0:01:02.5]}
32. hxg5 {[%clk 0:00:44.3]} 32... hxg5 {[%clk 0:01:03.4]} 33. Kd2 {[%clk
0:00:44.3]} 33... Kg7 {[%clk 0:01:03]} 34. Ra4 {[%clk 0:00:43.9]} 34... Rc8
{[%clk 0:00:58.4]} 35. Bd1 {[%clk 0:00:38.2]} 35... f5 {[%clk 0:00:52.1]} 36.
Be2 {[%clk 0:00:34.8]} 36... Nb6 {[%clk 0:00:44.7]} 37. Rb4 {[%clk 0:00:31.2]}
37... Rc6 {[%clk 0:00:42.9]} 38. g3 {[%clk 0:00:23]} 38... Kf6 {[%clk
0:00:41.9]} 39. Bf3 {[%clk 0:00:19.5]} 39... Rd6 {[%clk 0:00:41.1]} 40. Be2
{[%clk 0:00:19.8]} 40... Rc6 {[%clk 0:00:35]} 41. Bf3 {[%clk 0:00:19.7]} 41...
Rd6 {[%clk 0:00:20.9]} 42. Be2 {[%clk 0:00:19.5]} 42... Rc6 {[%clk 0:00:20.5]}
1/2-1/2

[Event "Late-Titled-Tuesday-Blitz-February-20-2024"]
[Site "Chess.com"]
[Date "2024.02.20"]
[Round "3"]
[White "rickywsb"]
[Black "VinzentSpitzl"]
[Result "0-1"]
[WhiteElo "2330"]
[BlackElo "2547"]
[TimeControl "180+1"]
[EndTime "14:27:01 PST"]
[Termination "VinzentSpitzl won by resignation"]

1. d4 {[%clk 0:03:00.9]} 1... d5 {[%clk 0:02:48.8]} 2. Bf4 {[%clk 0:02:57.5]}
2... Nf6 {[%clk 0:02:47]} 3. e3 {[%clk 0:02:57.6]} 3... c5 {[%clk 0:02:47.1]} 4.
Nd2 {[%clk 0:02:56.2]} 4... Nc6 {[%clk 0:02:45.9]} 5. Ngf3 {[%clk 0:02:56.3]}
5... Bf5 {[%clk 0:02:39.6]} 6. c4 {[%clk 0:02:21]} 6... e6 {[%clk 0:02:31.5]} 7.
Qb3 {[%clk 0:02:20.1]} 7... Qb6 {[%clk 0:02:12]} 8. Be2 {[%clk 0:01:50.9]} 8...
cxd4 {[%clk 0:02:03.7]} 9. Qxb6 {[%clk 0:01:46.6]} 9... axb6 {[%clk 0:02:03.1]}
10. exd4 {[%clk 0:01:44.3]} 10... Be7 {[%clk 0:01:54.8]} 11. Bc7 {[%clk
0:01:40.4]} 11... O-O {[%clk 0:01:42.3]} 12. Bxb6 {[%clk 0:01:39.4]} 12... Nb4
{[%clk 0:01:42]} 13. O-O {[%clk 0:01:33]} 13... Nc2 {[%clk 0:01:38.6]} 14. Rac1
{[%clk 0:01:24.5]} 14... Rxa2 {[%clk 0:01:37.6]} 15. b3 {[%clk 0:01:13.9]} 15...
h6 {[%clk 0:01:12.8]} 16. c5 {[%clk 0:01:11]} 16... Nb4 {[%clk 0:01:11]} 17. Bb5
{[%clk 0:00:54.9]} 17... Nd3 {[%clk 0:00:55.9]} 18. Ra1 {[%clk 0:00:51.2]} 18...
Rfa8 {[%clk 0:00:53.3]} 19. Rxa2 {[%clk 0:00:49.8]} 19... Rxa2 {[%clk
0:00:52.8]} 20. h3 {[%clk 0:00:32.5]} 20... Nb4 {[%clk 0:00:49]} 21. g4 {[%clk
0:00:24.9]} 21... Bc2 {[%clk 0:00:41.7]} 22. Ne5 {[%clk 0:00:21]} 22... Ne4
{[%clk 0:00:36]} 23. Nxe4 {[%clk 0:00:20.6]} 23... dxe4 {[%clk 0:00:36.9]} 24.
Re1 {[%clk 0:00:14.7]} 24... Bxb3 {[%clk 0:00:32.7]} 25. Rxe4 {[%clk 0:00:14.2]}
25... Bd5 {[%clk 0:00:33]} 26. Re1 {[%clk 0:00:14.1]} 26... Nc2 {[%clk
0:00:26.3]} 27. Rd1 {[%clk 0:00:12.6]} 27... Bh4 {[%clk 0:00:24.3]} 28. Bc4
{[%clk 0:00:11.7]} 28... Bxc4 {[%clk 0:00:17]} 29. Nxc4 {[%clk 0:00:12.6]} 29...
Ra4 {[%clk 0:00:15.2]} 30. Ne5 {[%clk 0:00:09.6]} 30... Rxd4 {[%clk 0:00:13.6]}
31. c6 {[%clk 0:00:09.4]} 31... Rxd1+ {[%clk 0:00:13.1]} 0-1

[Event "Late-Titled-Tuesday-Blitz-February-20-2024"]
[Site "Chess.com"]
[Date "2024.02.20"]
[Round "3"]
[White "Goryachkina"]
[Black "Hui_Li_Macau"]
[Result "1-0"]
[WhiteElo "2686"]
[BlackElo "2357"]
[TimeControl "180+1"]
[EndTime "14:27:01 PST"]
[Termination "Goryachkina won on time"]

1. e4 {[%clk 0:02:59.7]} 1... e5 {[%clk 0:02:59.1]} 2. Bc4 {[%clk 0:02:58.6]}
2... Nf6 {[%clk 0:02:58.7]} 3. d3 {[%clk 0:02:58.7]} 3... c6 {[%clk 0:02:58.7]}
4. Nf3 {[%clk 0:02:58.7]} 4... d5 {[%clk 0:02:58.7]} 5. Bb3 {[%clk 0:02:59]}
5... Bd6 {[%clk 0:02:52.6]} 6. exd5 {[%clk 0:02:57.4]} 6... cxd5 {[%clk
0:02:51.4]} 7. Nc3 {[%clk 0:02:57.4]} 7... Nc6 {[%clk 0:02:49.4]} 8. O-O {[%clk
0:02:54.2]} 8... Be6 {[%clk 0:02:32.7]} 9. Bg5 {[%clk 0:02:48.1]} 9... Bc7
{[%clk 0:02:28.7]} 10. Re1 {[%clk 0:02:26.9]} 10... h6 {[%clk 0:01:48.4]} 11.
Bh4 {[%clk 0:02:21.1]} 11... O-O {[%clk 0:00:41.4]} 12. Qd2 {[%clk 0:01:52.3]}
12... Kh7 {[%clk 0:00:24.7]} 13. h3 {[%clk 0:01:38]} 13... Re8 {[%clk
0:00:21.3]} 14. Ne2 {[%clk 0:01:10.7]} 14... e4 {[%clk 0:00:15.3]} 15. Nfd4
{[%clk 0:01:08.8]} 15... g5 {[%clk 0:00:11.5]} 16. Bg3 {[%clk 0:00:56.8]} 16...
Nxd4 {[%clk 0:00:07.7]} 17. Nxd4 {[%clk 0:00:56.3]} 17... Bxg3 {[%clk
0:00:07.6]} 18. fxg3 {[%clk 0:00:56.5]} 18... Nh5 {[%clk 0:00:06.1]} 19. Qf2
{[%clk 0:00:48.2]} 19... Qd6 {[%clk 0:00:05.3]} 20. Nxe6 {[%clk 0:00:46.3]}
20... Qxe6 {[%clk 0:00:03.4]} 21. dxe4 {[%clk 0:00:46.4]} 21... Qd6 {[%clk
0:00:02.1]} 22. Qxf7+ {[%clk 0:00:45.2]} 22... Ng7 {[%clk 0:00:02.3]} 23. Qxd5
{[%clk 0:00:26.2]} 23... Qb6+ {[%clk 0:00:02]} 24. Kh2 {[%clk 0:00:25.8]} 24...
Rad8 {[%clk 0:00:02.2]} 25. Qc4 {[%clk 0:00:24.8]} 25... Qd6 {[%clk 0:00:01.9]}
26. Qc3 {[%clk 0:00:23.4]} 26... Nh5 {[%clk 0:00:01.5]} 27. e5 {[%clk
0:00:22.8]} 27... Qe7 {[%clk 0:00:01.4]} 28. Rf1 {[%clk 0:00:16.4]} 28... Rc8
{[%clk 0:00:01.3]} 29. Qd3+ {[%clk 0:00:16.2]} 29... Kh8 {[%clk 0:00:01.2]} 30.
Rf7 {[%clk 0:00:16.4]} 1-0

[Event "Late-Titled-Tuesday-Blitz-February-20-2024"]
[Site "Chess.com"]
[Date "2024.02.20"]
[Round "3"]
[White "Bugcrusher"]
[Black "Christ_is_alive"]
[Result "1-0"]
[WhiteElo "2530"]
[BlackElo "2272"]
[TimeControl "180+1"]
[EndTime "14:27:02 PST"]
[Termination "Bugcrusher won on time"]

1. d4 {[%clk 0:02:57.5]} 1... Nf6 {[%clk 0:02:58.8]} 2. c4 {[%clk 0:02:57]} 2...
g6 {[%clk 0:02:59.1]} 3. Nc3 {[%clk 0:02:56.8]} 3... Bg7 {[%clk 0:02:59.8]} 4.
e4 {[%clk 0:02:56.3]} 4... d6 {[%clk 0:03:00.5]} 5. Nf3 {[%clk 0:02:56.1]} 5...
O-O {[%clk 0:03:01.1]} 6. Be2 {[%clk 0:02:56.6]} 6... e5 {[%clk 0:03:01.7]} 7.
O-O {[%clk 0:02:57.1]} 7... Nc6 {[%clk 0:03:01.9]} 8. d5 {[%clk 0:02:56.9]} 8...
Ne7 {[%clk 0:03:01.8]} 9. b4 {[%clk 0:02:57.2]} 9... Nh5 {[%clk 0:03:01.9]} 10.
Re1 {[%clk 0:02:56.9]} 10... f5 {[%clk 0:03:01.9]} 11. Ng5 {[%clk 0:02:56.8]}
11... Nf6 {[%clk 0:03:02.5]} 12. Bf3 {[%clk 0:02:56.9]} 12... fxe4 {[%clk
0:03:02.5]} 13. Ncxe4 {[%clk 0:02:52.6]} 13... Nf5 {[%clk 0:03:02.8]} 14. Bb2
{[%clk 0:02:49.3]} 14... Nd4 {[%clk 0:02:54]} 15. Bxd4 {[%clk 0:02:47.9]} 15...
exd4 {[%clk 0:02:54.9]} 16. Ne6 {[%clk 0:02:46.8]} 16... Bxe6 {[%clk 0:02:53.1]}
17. dxe6 {[%clk 0:02:47.7]} 17... Nxe4 {[%clk 0:01:45.4]} 18. Bxe4 {[%clk
0:02:45.4]} 18... Be5 {[%clk 0:01:35]} 19. g3 {[%clk 0:02:41.4]} 19... c6 {[%clk
0:01:26.6]} 20. f4 {[%clk 0:02:40.7]} 20... Bf6 {[%clk 0:01:25.6]} 21. Qd3
{[%clk 0:02:31.9]} 21... Kg7 {[%clk 0:01:10.2]} 22. b5 {[%clk 0:02:22.9]} 22...
d5 {[%clk 0:01:08.5]} 23. cxd5 {[%clk 0:02:20.7]} 23... cxd5 {[%clk 0:01:09.4]}
24. Bf3 {[%clk 0:02:19.3]} 24... Qd6 {[%clk 0:01:03]} 25. Rac1 {[%clk 0:02:11]}
25... Rae8 {[%clk 0:01:00.3]} 26. Bg4 {[%clk 0:01:40.6]} 26... Re7 {[%clk
0:00:59.8]} 27. a3 {[%clk 0:01:35.4]} 27... Rfe8 {[%clk 0:00:51.6]} 28. Kg2
{[%clk 0:01:35]} 28... Qb6 {[%clk 0:00:39.8]} 29. h4 {[%clk 0:01:31.1]} 29...
Qa5 {[%clk 0:00:34.1]} 30. h5 {[%clk 0:01:06.5]} 30... Rc7 {[%clk 0:00:23.3]}
31. Rxc7+ {[%clk 0:01:03.7]} 31... Qxc7 {[%clk 0:00:24.2]} 32. Rh1 {[%clk
0:00:55.9]} 32... Qc3 {[%clk 0:00:20.4]} 33. h6+ {[%clk 0:00:55.7]} 33... Kg8
{[%clk 0:00:18.5]} 34. Rd1 {[%clk 0:00:52]} 34... Rc8 {[%clk 0:00:14.3]} 35. Bf3
{[%clk 0:00:49]} 35... Rc5 {[%clk 0:00:12.4]} 36. Bxd5 {[%clk 0:00:33.7]} 36...
Rxd5 {[%clk 0:00:02.5]} 37. Qxc3 {[%clk 0:00:33.1]} 37... dxc3 {[%clk
0:00:02.3]} 38. Rxd5 {[%clk 0:00:33.3]} 38... Kf8 {[%clk 0:00:01.8]} 39. Rd7
{[%clk 0:00:27.8]} 1-0